bitfinex/quotes_ETHUSD_20241119
["timestamp","ask_amount","ask_price","bid_price","bid_amount"]
[1732048463228,9.42563,3112.6,3112.0,1.60667]
[1732048463376,3.21302,3112.4,3111.7,1.6068]
[1732048463578,0.942563,3112.6,3111.7,1.6068]
[1732048463902,3.21279,3112.6,3112.0,1.60668]
[1732048465400,3.21279,3112.6,3112.0,1.60664]
[1732048465610,3.0,3112.7,3112.3,1.78239]
[1732048465763,3.0,3112.7,3112.3,0.1759]
[1732048465966,3.21285,3112.5,3112.3,0.1759]
[1732048466364,6.21266,3112.7,3112.3,0.1759]
[1732048466565,3.21307,3112.3,3112.0,0.1759]
[1732048466869,3.21325,3112.2,3111.6,1.78276]
[1732048467106,3.21325,3112.2,3111.7,1.60683]
[1732048467497,3.21325,3112.2,3111.6,0.1759]
[1732048467880,4.6430067,3112.2,3111.6,0.1759]
[1732048468091,3.321307,3112.3,3111.7,1.6068]
[1732048468303,3.0,3112.3,3111.6,0.1759]
[1732048468530,6.42672,3112.1,3111.6,0.1759]
[1732048468814,0.642672,3112.1,3111.7,1.60682]
[1732048469019,6.42578,3112.5,3111.9,1.60672]
[1732048469313,3.21333,3112.1,3111.6,0.1759]
[1732048469814,0.755,3112.8,3111.7,1.60683]
[1732048469994,3.21313,3112.3,3111.7,1.60683]
[1732048470371,7.068874,3112.3,3111.6,0.1759]
[1732048470583,3.21313,3112.3,3111.7,1.60683]
[1732048470778,3.21313,3112.3,3111.6,0.1759]
[1732048471009,3.21336,3112.0,3111.6,0.1759]
[1732048471214,0.321336,3111.9,3111.3,1.78293]
[1732048471391,0.755,3112.1,3111.4,1.60698]
[1732048471592,3.2134,3112.0,3111.5,1.60692]
[1732048471810,3.21312,3112.3,3111.7,1.6068]
[1732048472118,6.21297,3112.4,3111.7,1.6068]
[1732048472327,6.21297,3112.4,3111.8,1.60675]
[1732048472613,3.0,3112.5,3111.9,1.78262]
[1732048472814,3.21301,3112.4,3111.9,1.78262]
[1732048473380,3.21301,3112.4,3111.9,0.1759]
[1732048473527,3.0,3112.5,3111.9,0.1759]
[1732048473528,6.21291,3112.5,3111.9,1.7826]
[1732048473837,0.3396778,3112.4,3111.5,1.78282]
[1732048474033,3.21333,3112.1,3111.5,1.78282]
[1732048474194,6.42667,3112.1,3111.5,1.78282]
[1732048474395,3.21333,3112.1,3111.5,1.78282]
[1732048474620,3.21325,3112.2,3111.5,1.7828]
[1732048474923,3.88928278,3112.2,3111.6,1.60686]
[1732048475127,3.54707778,3112.3,3111.8,1.60678]
[1732048475326,9.42583,3112.5,3111.7,1.60682]
[1732048475529,3.21305,3112.3,3111.8,1.60678]
[1732048477529,0.696789,3112.5,3112.0,1.60666]
[1732048477726,0.55,3112.6,3112.0,1.60666]
[1732048478045,0.55,3112.6,3112.2,1.60657]
[1732048478250,0.755,3112.7,3112.2,1.60657]
[1732048478406,3.21277,3112.6,3112.1,1.7825]
[1732048478919,3.2125,3112.9,3112.2,1.60657]
[1732048479509,3.21254,3112.8,3112.3,1.60651]
[1732048479708,0.642504,3112.7,3112.3,1.60651]
[1732048480122,3.21251,3112.9,3112.3,1.60649]
[1732048480724,3.21261,3112.8,3112.3,1.60649]
[1732048481047,3.21251,3112.9,3112.3,1.60649]
[1732048481344,3.21264,3112.7,3112.1,1.78249]
[1732048481542,0.376251,3112.8,3112.1,1.78249]
[1732048481746,3.21264,3112.7,3112.1,1.7825]
[1732048482042,3.21264,3112.7,3111.5,0.1759]
[1732048482043,0.7807,3112.5,3111.5,0.1759]
[1732048482245,0.7807,3112.5,3110.7,0.01]
[1732048482246,3.21332,3112.1,3111.2,0.1759]
[1732048482449,0.7807,3112.5,3111.6,1.60685]
[1732048482771,3.21311,3112.3,3111.6,1.60685]
[1732048483041,3.589521,3112.2,3111.6,3.21371]
[1732048483248,0.376311,3112.2,3111.4,1.60696]
[1732048483443,0.7807,3112.5,3111.2,0.1759]
[1732048483444,3.21358,3111.8,3111.2,0.1759]
[1732048483647,3.21377,3111.7,3111.0,1.60715]
[1732048483820,3.21357,3111.8,3111.2,1.60708]
[1732048484020,3.21357,3111.8,3110.6,4.60739]
[1732048484021,3.21379,3111.6,3111.0,1.60716]
[1732048485052,0.399427,3111.7,3111.0,1.60716]
[1732048485555,3.21379,3111.6,3111.1,1.60714]
[1732048485756,3.21399,3111.4,3110.8,1.60727]
[1732048486046,3.21379,3111.6,3110.5,0.1759]
[1732048486047,0.3613217,3111.5,3111.0,1.60717]
[1732048486210,3.21379,3111.6,3111.0,1.60716]
[1732048486414,3.856528,3111.6,3111.0,3.21432]
[1732048486755,0.642738,3111.6,3111.3,1.60702]
[1732048486909,3.21359,3111.8,3111.3,1.60702]
[1732048487306,6.42723,3111.8,3111.3,1.60702]
[1732048487714,3.21373,3111.7,3111.1,1.78303]
[1732048487933,3.934383,3111.8,3111.1,1.78303]
[1732048488135,3.21381,3111.6,3111.1,1.78303]
[1732048488379,3.21403,3111.4,3110.9,1.60722]
[1732048488549,3.21406,3111.4,3110.6,1.60739]
[1732048488757,0.7989,3111.3,3110.7,1.60731]
[1732048488920,3.2143,3111.1,3110.5,1.78331]
[1732048489123,3.21456,3110.9,3110.4,1.60751]
[1732048489853,3.21435,3111.1,3110.5,1.60741]
[1732048490716,3.21409,3111.3,3110.8,1.6073]
[1732048490926,3.21388,3111.6,3110.9,1.60722]
[1732048491114,0.7989,3111.7,3111.1,1.78303]
[1732048491310,3.21387,3111.6,3111.1,0.1759]
[1732048491515,3.21387,3111.6,3110.3,3.0]
[1732048491760,0.401277,3111.5,3111.0,1.60719]
[1732048491917,3.21387,3111.6,3111.0,1.78305]
[1732048492130,3.21384,3111.6,3111.0,0.1759]
[1732048492335,4.01262,3111.7,3111.0,0.1759]
[1732048492678,4.01262,3111.7,3110.6,1.78329]
[1732048492679,3.21421,3111.2,3110.6,1.78329]
[1732048492829,3.21421,3111.2,3110.6,0.1759]
[1732048493170,0.7725,3111.0,3110.2,0.302]
[1732048493395,3.21461,3110.8,3110.2,1.60757]
[1732048493537,3.21476,3110.7,3110.1,0.1759]
[1732048493737,3.21461,3110.8,3110.2,0.178359]
[1732048494048,0.7725,3111.0,3110.1,0.1759]
[1732048494049,3.21487,3110.6,3110.1,0.1759]
[1732048494757,6.42978,3110.6,3110.1,0.1759]
[1732048494949,3.21487,3110.6,3110.1,0.1759]
[1732048495148,3.21479,3110.7,3110.1,0.1759]
[1732048495380,3.21486,3110.6,3109.8,1.6078]
[1732048495680,2.89454835,3111.4,3109.2,0.30502869]
[1732048495681,0.7501,3111.6,3111.2,1.60706]
[1732048495879,3.2136,3111.8,3111.1,1.78301]
[1732048496171,3.21376,3111.7,3111.1,1.78301]
[1732048496346,3.21376,3111.7,3111.1,0.1759]
[1732048496672,3.2138,3111.6,3111.1,1.78301]
[1732048496883,3.21378,3111.6,3111.1,0.1759]
[1732048497049,0.717737,3111.7,3110.8,0.1759]
[1732048497050,3.214,3111.4,3110.8,0.1759]
[1732048497582,6.42808,3111.4,3110.8,0.1759]
[1732048497790,3.21412,3111.3,3110.8,0.1759]
[1732048498135,3.0,3111.3,3110.8,0.1759]
[1732048498375,0.6214,3111.2,3110.8,0.1759]
[1732048498871,0.55,3111.4,3110.9,1.60721]
[1732048499033,3.76399,3111.4,3110.9,1.60721]
[1732048499464,0.55,3111.4,3110.9,1.60721]
[1732048499971,3.21399,3111.4,3110.9,1.946263]
[1732048500180,6.21386,3111.6,3110.9,1.60722]
[1732048500386,3.21405,3111.4,3110.8,0.1759]
[1732048500875,3.2139,3111.5,3110.9,1.60724]
[1732048501044,3.53529,3111.5,3110.9,1.60724]
[1732048501440,0.32139,3111.5,3110.9,1.60724]
[1732048501639,0.32139,3111.5,3110.8,0.1759]
[1732048501640,0.55,3111.5,3111.3,1.60704]
[1732048501874,0.55,3111.6,3111.3,1.60704]
[1732048502094,0.55,3111.7,3111.2,1.60707]
[1732048502239,3.0,3111.6,3111.0,1.60716]
[1732048502442,7.190159,3111.6,3111.0,1.60716]
[1732048502642,3.21392,3111.5,3110.8,1.78316]
[1732048502880,3.2143,3111.1,3110.6,1.60739]
[1732048503087,4.00063,3111.3,3110.5,0.1759]
[1732048503388,0.55,3111.2,3110.6,1.60737]
[1732048503609,0.55,3111.2,3110.8,1.60728]
[1732048504012,3.7642,3111.2,3110.6,1.60737]
[1732048504169,3.21431,3111.1,3110.5,1.78335]
[1732048504371,3.21431,3111.1,3110.5,3.39077]
[1732048504603,1.37695589,3111.2,3110.7,1.60733]
[1732048505323,3.21436,3111.1,3110.5,1.78333]
[1732048505606,3.21436,3111.1,3109.1,1.60813]
[1732048505607,0.53778159,3111.1,3110.2,0.1759]
[1732048505821,3.55,3111.0,3110.2,1.78348]
[1732048505970,3.21457,3110.9,3110.2,1.78348]
[1732048506171,4.02683,3110.7,3110.0,1.60767]
[1732048506508,4.57683,3110.7,3110.0,1.60767]
[1732048506808,0.55,3110.7,3109.9,0.1759]
[1732048507014,0.55,3110.9,3110.5,1.60743]
[1732048507579,0.55,3110.9,3110.7,1.60733]
[1732048507885,3.55,3111.2,3110.6,1.6074]
[1732048508113,3.55,3111.2,3110.7,1.60735]
[1732048508709,0.55,3111.2,3110.8,1.60725]
[1732048509014,0.55,3111.2,3110.7,1.60732]
[1732048509215,0.55,3111.2,3110.8,1.6073]
[1732048509522,0.55,3111.2,3110.7,1.60734]
[1732048509810,0.8121,3111.6,3111.1,1.60711]
[1732048509998,0.8121,3111.6,3111.1,1.60713]
[1732048510199,0.38121,3111.5,3111.1,3.21423]
[1732048510367,0.38121,3111.5,3111.1,1.6071]
[1732048510693,0.8121,3111.6,3111.1,1.6071]
[1732048511081,0.8121,3111.6,3111.2,1.60706]
[1732048511286,0.55,3111.5,3111.2,1.60706]
[1732048512325,0.55,3111.5,3111.0,1.60717]
[1732048512621,0.55,3111.5,3111.0,3.21433]
[1732048512918,1.007584,3111.5,3111.0,1.60716]
[1732048513130,1.007584,3111.5,3111.1,1.60714]
[1732048513453,1.007584,3111.5,3111.3,1.60701]
[1732048513600,0.55,3111.8,3111.4,1.60699]
[1732048513797,0.55,3111.8,3111.3,1.60701]
[1732048514302,0.55,3111.6,3111.1,3.39012]
[1732048514508,0.55,3111.6,3111.1,1.783]
[1732048514732,0.55,3111.6,3111.3,1.60704]
[1732048515833,0.55,3111.6,3111.2,1.60709]
[1732048516633,4.270136,3111.6,3111.2,1.60706]
[1732048516924,1.270136,3111.6,3111.2,1.60706]
[1732048517105,1.270136,3111.6,3111.1,0.1759]
[1732048517313,1.270136,3111.6,3111.4,1.60695]
[1732048517520,0.55,3111.8,3111.3,1.60699]
[1732048517883,0.55,3111.8,3111.4,1.60699]
[1732048518127,3.0,3112.1,3111.1,0.1759]
[1732048518330,3.21281,3112.6,3110.8,1.60729]
[1732048518331,3.21278,3112.6,3111.8,1.60674]
[1732048518590,0.7755,3112.5,3112.0,1.60664]
[1732048518879,0.7755,3112.8,3112.3,1.6065]
[1732048519385,0.7755,3112.8,3112.3,1.60651]
[1732048519545,0.7755,3112.8,3112.3,1.60649]
[1732048519733,0.7755,3112.8,3112.5,1.60638]
[1732048519933,0.8139,3113.1,3112.6,1.60636]
[1732048520377,4.02613,3113.1,3112.3,1.78239]
[1732048520530,0.8139,3113.1,3112.5,1.60638]
[1732048520733,0.402613,3113.0,3112.5,1.60638]
[1732048520954,4.02613,3113.1,3112.4,1.60647]
[1732048521280,3.21286,3112.5,3112.0,0.1759]
[1732048521439,3.21233,3113.0,3111.7,1.78271]
[1732048521440,0.77,3112.6,3111.7,1.78271]
[1732048521638,0.77,3112.6,3112.0,1.60667]
[1732048522048,7.19563,3112.6,3112.0,1.60667]
[1732048522266,7.19563,3112.6,3111.8,1.60677]
[1732048522267,3.9828,3112.6,3111.9,1.60668]
[1732048522471,3.9828,3112.6,3111.8,1.60677]
[1732048522642,3.9828,3112.6,3112.0,3.21334]
[1732048522840,3.9828,3112.6,3112.0,1.60667]
[1732048523360,3.9828,3112.6,3111.7,0.1759]
[1732048523551,0.39828,3112.5,3112.0,1.60665]
[1732048523872,3.21228,3113.1,3112.4,1.78237]
[1732048523873,3.21246,3112.9,3112.4,1.78237]
[1732048524034,3.21246,3112.9,3112.4,1.60647]
[1732048524235,3.854935,3112.9,3112.4,1.60647]
[1732048524685,0.642475,3112.9,3112.4,1.60647]
[1732048524980,3.21244,3112.9,3112.4,1.60644]
[1732048525181,3.21259,3112.8,3112.2,1.60654]
[1732048525380,3.21272,3112.7,3112.1,0.1759]
[1732048525540,3.21272,3112.7,3112.1,1.7825]
[1732048525885,0.723043,3112.8,3112.3,1.60652]
[1732048526040,3.21251,3112.9,3112.3,1.60652]
[1732048526441,3.21255,3112.8,3112.2,1.60653]
[1732048526761,3.21245,3112.9,3112.3,1.6065]
[1732048527080,3.614229,3112.9,3112.3,1.6065]
[1732048527483,3.21255,3112.8,3112.3,1.6065]
[1732048527668,3.21272,3112.7,3112.1,1.78249]
[1732048527848,0.7632139,3112.8,3112.3,1.60651]
[1732048528058,3.2125,3112.9,3112.3,1.60649]
[1732048528263,3.21264,3112.7,3112.1,1.78249]
[1732048528641,0.723031,3112.8,3112.1,1.7825]
[1732048528839,0.723031,3112.8,3112.3,1.60649]
[1732048529439,0.8054,3113.0,3112.5,3.21276]
[1732048529645,3.21219,3113.2,3112.5,1.60637]
[1732048529646,0.55,3113.1,3112.5,1.60637]
[1732048529858,4.02868,3113.3,3112.7,1.60631]
[1732048530092,4.02868,3113.3,3112.7,1.78221]
[1732048530277,0.55,3113.2,3112.7,1.78219]
[1732048530462,0.402868,3113.2,3112.7,1.78219]
[1732048530684,4.03913,3113.6,3112.7,1.78219]
[1732048530884,3.21155,3113.8,3113.2,1.60603]
[1732048531195,0.8274,3113.9,3113.4,1.60595]
[1732048531660,0.8274,3113.9,3113.4,1.60593]
[1732048532305,0.8274,3113.9,3113.3,0.1759]
[1732048532595,3.21163,3113.7,3113.3,0.1759]
[1732048532807,3.21173,3113.6,3112.9,1.78208]
[1732048532961,3.21193,3113.4,3112.9,1.78208]
[1732048533163,0.8274,3113.9,3112.9,0.1759]
[1732048533374,3.2116,3113.8,3113.2,1.60602]
[1732048533557,3.936636,3113.8,3113.2,1.60602]
[1732048533874,3.936636,3113.8,3113.0,1.60613]
[1732048533875,0.725036,3113.8,3113.5,1.60587]
[1732048534078,3.98795,3114.2,3113.5,1.60587]
[1732048534079,0.55,3114.1,3113.5,1.60587]
[1732048534574,0.55,3114.1,3113.3,1.60598]
[1732048534779,0.55,3114.1,3112.9,0.1759]
[1732048534780,0.7891,3113.6,3112.9,0.1759]
[1732048534997,0.7891,3113.6,3113.1,1.60607]
[1732048535203,3.21167,3113.7,3113.2,1.60606]
[1732048535359,0.7891,3113.9,3113.4,1.60593]
[1732048535902,4.00057,3113.9,3113.3,1.60598]
[1732048536058,4.455605,3113.9,3113.4,1.60593]
[1732048536462,1.244135,3113.9,3113.4,1.60593]
[1732048536689,3.96172,3114.2,3113.6,1.60585]
[1732048537170,3.21098,3114.4,3113.5,0.1759]
[1732048537475,0.7506,3114.5,3113.6,1.60585]
[1732048537679,0.7506,3115.3,3113.5,0.1759]
[1732048537863,0.7506,3115.3,3114.1,0.1759]
[1732048537864,3.21054,3114.8,3114.1,0.1759]
[1732048538069,3.21006,3115.2,3114.1,0.1759]
[1732048538264,3.21059,3114.7,3114.1,0.1759]
[1732048538771,3.21059,3114.7,3114.1,1.78149]
[1732048538990,3.531649,3114.7,3114.1,1.78149]
[1732048540102,3.531649,3114.7,3114.1,0.1759]
[1732048541269,3.21068,3114.6,3114.1,0.1759]
[1732048541610,3.531699,3114.7,3114.1,0.1759]
[1732048541809,3.21079,3114.5,3114.1,0.1759]
[1732048541982,3.21107,3114.3,3114.1,0.1759]
[1732048542165,3.21161,3113.7,3113.0,1.60615]
[1732048542375,3.21141,3113.9,3112.8,0.1759]
[1732048542678,3.21155,3113.8,3113.1,1.60607]
[1732048542885,3.60748,3114.0,3113.3,1.60598]
[1732048543087,3.60748,3114.0,3113.4,0.1759]
[1732048543321,3.21142,3113.9,3113.4,0.1759]
[1732048543975,0.39618,3114.0,3113.4,0.1759]
[1732048544318,3.21118,3114.2,3113.4,1.78186]
[1732048544495,3.21118,3114.2,3113.6,1.60585]
[1732048545317,3.21118,3114.2,3113.5,1.6059]
[1732048545318,3.21121,3114.1,3113.5,1.6059]
[1732048546428,3.21131,3114.0,3113.5,1.6059]
[1732048546611,0.717269,3114.2,3113.4,0.1759]
[1732048546817,3.21158,3113.8,3113.1,1.782]
[1732048547116,3.21169,3113.7,3113.1,1.782]
[1732048547301,1.071758,3113.8,3112.7,1.60631]
[1732048547481,3.2119,3113.5,3112.8,1.78215]
[1732048547681,3.21203,3113.3,3112.8,0.1759]
[1732048548485,3.21161,3113.7,3112.8,1.78216]
[1732048548683,3.21194,3113.4,3112.8,1.78216]
[1732048548919,3.2118,3113.6,3112.9,1.60621]
[1732048549121,3.21166,3113.7,3113.0,1.60615]
[1732048549924,3.21174,3113.6,3113.0,1.60615]
[1732048550215,3.21191,3113.5,3112.9,0.178213]
[1732048550529,3.21191,3113.5,3113.0,1.60616]
[1732048550824,3.21191,3113.5,3112.8,0.1759]
[1732048550825,0.55,3113.4,3112.8,0.1759]
[1732048551037,0.8019,3113.5,3112.2,0.1759]
[1732048551231,3.21297,3112.4,3111.8,1.78264]
[1732048551432,3.21297,3112.4,3111.8,0.1759]
[1732048552422,3.21306,3112.3,3111.8,0.1759]
[1732048553221,3.21285,3112.5,3111.8,1.78268]
[1732048553417,0.8019,3112.7,3111.8,1.78268]
[1732048553619,3.21289,3112.5,3111.8,1.78268]
[1732048553827,3.21289,3112.5,3111.8,2.121636]
[1732048553979,0.8019,3112.7,3111.0,0.1759]
[1732048553980,0.55,3112.6,3111.0,0.1759]
[1732048554187,3.21363,3111.8,3111.2,1.60704]
[1732048554626,3.21363,3111.8,3111.0,0.1759]
[1732048554840,3.21363,3111.8,3111.1,1.60714]
[1732048555124,3.21368,3111.7,3111.2,1.60709]
[1732048555633,3.21381,3111.6,3111.0,0.1759]
[1732048556469,3.21419,3111.2,3110.6,1.6074]
[1732048556617,3.21419,3111.2,3110.5,1.60745]
[1732048556818,3.21411,3111.3,3110.6,1.60737]
[1732048557120,3.98568,3111.5,3110.8,1.60725]
[1732048557121,3.98577,3111.5,3110.8,1.60725]
[1732048557850,3.98577,3111.5,3110.9,1.60725]
[1732048558024,3.21405,3111.4,3110.8,1.65226857]
[1732048558224,3.21405,3111.4,3110.8,1.60728]
[1732048558423,0.8244,3111.8,3111.0,1.60717]
[1732048558424,3.21372,3111.7,3111.0,1.60717]
[1732048558736,3.21347,3111.9,3111.1,0.1759]
[1732048558927,3.21337,3112.0,3111.3,1.60703]
[1732048559120,3.21337,3112.0,3111.2,0.04672419]
[1732048559121,3.21305,3112.3,3111.2,1.60708]
[1732048559320,3.21299,3112.4,3111.3,1.60701]
[1732048559554,3.21347,3111.9,3111.3,1.60701]
[1732048560171,3.0,3111.8,3111.3,1.60701]
[1732048560462,3.21327,3112.1,3111.5,1.60693]
[1732048560463,6.21337,3112.0,3111.5,1.60693]
[1732048560664,6.21337,3112.0,3111.1,0.1759]
[1732048560665,6.21337,3112.0,3111.3,1.607]
[1732048560848,3.0,3111.8,3111.3,1.607]
[1732048561047,3.0,3112.0,3111.6,1.60687]
[1732048561367,3.0,3112.0,3111.4,1.60695]
[1732048561837,3.97569,3112.5,3111.9,1.60673]
[1732048562160,0.55,3112.4,3111.7,1.78269]
[1732048562362,3.21337,3112.0,3111.5,1.60692]
[1732048562521,3.21337,3112.0,3111.4,1.78286]
[1732048562721,3.21337,3112.0,3111.5,1.60692]
[1732048562922,6.42643,3112.2,3111.5,1.60694]
[1732048563227,0.7428999,3112.2,3111.4,0.1759]
[1732048563426,0.55,3112.2,3111.4,0.1759]
[1732048563707,3.21357,3111.8,3111.4,0.1759]
[1732048564067,3.21368,3111.7,3111.1,1.78302]
[1732048564375,3.2141,3111.3,3110.6,1.28592]
[1732048564577,3.2141,3111.3,3110.7,1.28585]
[1732048564808,3.21391,3111.5,3110.9,1.28579]
[1732048564964,3.856674,3111.5,3110.7,1.28585]
[1732048565167,3.21446,3111.0,3110.5,0.1759]
[1732048565468,3.2147,3110.8,3110.2,1.46198]
[1732048565667,3.2147,3110.8,3110.3,1.28604]
[1732048565865,3.99764,3111.2,3110.5,1.28593]
[1732048566214,0.55,3111.1,3110.8,0.1759]
[1732048566369,0.55,3111.3,3110.8,0.1759]
[1732048566568,0.55,3111.3,3110.8,1.46172]
[1732048566972,3.21428,3111.2,3110.8,0.1759]
[1732048567201,3.21467,3110.8,3110.2,1.46196]
[1732048567446,3.21444,3111.0,3110.4,1.286]
[1732048567578,3.21453,3110.9,3110.3,1.28604]
[1732048567914,3.21453,3110.9,3110.4,1.28599]
[1732048568266,0.829,3111.2,3110.6,1.28589]
[1732048568471,3.0,3111.3,3110.7,1.28587]
[1732048568679,3.21419,3111.2,3110.7,1.28587]
[1732048569667,6.21413,3111.3,3110.6,1.28588]
[1732048569870,3.2142,3111.2,3110.6,1.28588]
[1732048570478,3.2142,3111.2,3110.7,1.28588]
[1732048570674,3.96424,3111.5,3110.9,1.28579]
[1732048570893,3.21412,3111.3,3110.8,0.1759]
[1732048571416,3.21412,3111.3,3110.8,1.46171]
[1732048571623,3.0,3111.6,3111.0,1.28573]
[1732048571768,3.76378,3111.6,3111.1,1.28571]
[1732048571974,0.55,3111.7,3111.1,1.28571]
[1732048572172,3.76377,3111.7,3111.0,1.28573]
[1732048572423,0.55,3111.7,3110.8,0.1759]
[1732048572579,3.0,3111.7,3111.2,1.28564]
[1732048572973,3.21385,3111.6,3111.0,1.28573]
[1732048573173,3.21399,3111.4,3110.8,1.46173]
[1732048573412,3.21381,3111.6,3110.8,1.46173]
[1732048573595,3.21395,3111.5,3110.8,1.46173]
[1732048573917,3.21395,3111.5,3110.8,1.46171]
[1732048574110,3.21371,3111.7,3111.0,1.28572]
[1732048574296,3.0,3111.9,3111.4,1.46147]
[1732048574502,3.0,3112.0,3111.5,1.28553]
[1732048574701,0.401202,3112.1,3111.6,1.2855]
[1732048575385,0.401202,3112.1,3111.7,1.28546]
[1732048575603,0.7987,3112.4,3111.6,1.28547]
[1732048575917,0.7987,3112.4,3111.5,1.28552]
[1732048575918,3.0,3112.1,3111.5,1.28552]
[1732048576505,3.0,3112.1,3110.8,1.28581]
[1732048576506,3.21377,3111.7,3111.1,0.1759]
[1732048576873,3.21376,3111.7,3111.1,0.1759]
[1732048577077,0.7726,3111.8,3110.8,1.46171]
[1732048577304,3.21384,3111.6,3110.9,1.28579]
[1732048577502,6.42769,3111.6,3110.9,1.28579]
[1732048577670,3.21389,3111.5,3110.9,1.28579]
[1732048577889,3.21379,3111.6,3111.0,1.28575]
[1732048578216,3.21388,3111.5,3110.9,1.28579]
[1732048578414,3.988841,3111.6,3110.8,0.1759]
[1732048578415,3.21404,3111.4,3110.8,0.1759]
[1732048578752,7.202691,3111.6,3110.9,1.2858]
[1732048579385,3.988821,3111.6,3110.8,1.46173]
[1732048579599,0.775001,3111.6,3111.1,1.2857]
[1732048579804,3.988801,3111.6,3111.0,1.28573]
[1732048580019,7.202681,3111.6,3111.0,1.28573]
[1732048580215,7.202681,3111.6,3110.8,1.46173]
[1732048580216,0.4538801,3111.5,3110.8,1.46173]
[1732048580521,3.6677801,3111.5,3110.9,1.28579]
[1732048581022,3.6677801,3111.5,3110.8,1.46173]
[1732048581211,3.6677801,3111.5,3110.9,1.2858]
[1732048581926,0.4538801,3111.5,3111.0,1.28573]
[1732048582130,3.21348,3111.9,3111.3,1.2856]
[1732048582423,1.105018,3112.1,3111.4,1.46148]
[1732048582424,3.99704,3112.1,3111.4,1.46148]
[1732048582635,3.21338,3112.0,3111.4,1.46148]
[1732048582938,0.7837,3112.1,3111.6,1.2855]
[1732048583093,3.21322,3112.2,3111.6,1.2855]
[1732048583433,4.00751,3112.4,3111.7,1.28545]
[1732048583734,0.7945,3112.4,3111.6,1.28548]
[1732048583936,3.21306,3112.3,3111.7,1.28544]
[1732048585436,3.21306,3112.3,3111.4,0.1759]
[1732048585437,0.7945,3112.4,3111.4,1.46147]
[1732048585734,3.21313,3112.3,3111.6,1.28548]
[1732048585913,6.827021,3112.3,3111.6,1.28548]
[1732048586270,3.613871,3112.3,3111.6,2.57096]
[1732048586399,3.613871,3112.3,3111.7,1.28544]
[1732048586806,3.21318,3112.2,3111.6,1.28548]
[1732048587043,0.801,3111.5,3110.8,0.1759]
[1732048587331,3.21457,3110.9,3110.3,1.46194]
[1732048587489,3.7643,3111.1,3110.3,1.46191]
[1732048587688,0.376431,3111.0,3110.4,1.28598]
[1732048588129,0.376431,3111.0,3110.3,1.46191]
[1732048588130,0.376431,3111.0,3110.5,1.28596]
[1732048588428,0.55,3111.2,3110.8,1.28582]
[1732048588587,3.21405,3111.4,3110.8,1.28582]
[1732048588786,3.99903,3111.7,3111.0,1.28572]
[1732048588986,3.99903,3111.7,3111.0,0.274738]
[1732048589186,3.2139,3111.5,3110.9,1.46166]
[1732048589435,3.214,3111.4,3110.9,1.46166]
[1732048589931,3.21389,3111.5,3110.9,1.46166]
[1732048591000,3.21388,3111.5,3110.9,0.1759]
[1732048591202,0.7959,3111.1,3110.5,0.1759]
[1732048591401,0.7959,3111.1,3109.2,0.02]
[1732048591402,3.2145,3110.9,3110.2,0.1759]
[1732048591602,4.01023,3111.1,3110.2,0.1759]
[1732048591818,4.01023,3111.1,3110.5,1.28595]
[1732048592833,4.01023,3111.1,3110.2,1.46196]
[1732048592834,3.21447,3111.0,3110.2,1.46196]
[1732048593028,3.21447,3111.0,3110.5,1.28596]
[1732048593402,3.21456,3110.9,3110.3,1.28602]
[1732048593608,3.2146,3110.8,3110.3,1.28602]
[1732048594010,0.642907,3110.8,3110.2,0.1759]
[1732048594306,3.21479,3110.7,3110.1,1.28612]
[1732048594533,3.21479,3110.7,3110.2,1.28608]
[1732048595040,3.21458,3110.9,3110.2,1.28608]
[1732048595243,3.2146,3110.8,3110.3,1.28604]
[1732048595802,3.2146,3110.8,3110.2,1.28608]
[1732048596319,0.8006,3110.4,3109.5,1.28635]
[1732048596520,4.01567,3110.4,3109.5,1.28635]
[1732048596727,3.21525,3110.2,3109.6,1.28632]
[1732048597456,3.21525,3110.2,3109.6,1.28633]
[1732048597651,3.21525,3110.2,3109.4,1.46228]
[1732048597652,3.21544,3110.0,3109.4,1.46228]
[1732048598017,3.21525,3110.2,3109.5,1.28637]
[1732048598216,3.21525,3110.2,3109.6,1.28631]
[1732048598729,3.21533,3110.1,3109.4,1.46229]
[1732048598928,3.21525,3110.2,3109.4,1.46229]
[1732048598929,3.21544,3110.0,3109.4,1.46229]
[1732048599318,3.21549,3110.0,3109.4,1.46229]
[1732048599720,3.21549,3110.0,3109.4,0.1759]
[1732048600155,3.21558,3109.9,3109.4,0.1759]
[1732048600353,3.21558,3109.9,3109.4,1.46232]
[1732048600956,3.21558,3109.9,3109.4,0.1759]
[1732048601311,3.21558,3109.9,3109.2,1.28649]
[1732048601312,3.2157,3109.8,3109.2,1.28649]
[1732048601431,3.21575,3109.7,3109.1,0.1759]
[1732048601963,3.21597,3109.5,3109.1,0.1759]
[1732048602456,3.21626,3109.2,3108.8,0.1759]
[1732048603726,3.21626,3109.2,3108.6,1.28673]
[1732048603953,3.97866,3109.2,3108.6,1.28673]
[1732048604462,3.97866,3109.2,3108.6,1.28675]
[1732048604617,0.7624,3109.2,3108.6,1.28675]
[1732048604963,3.97872,3109.2,3108.6,1.28675]
[1732048605769,3.97872,3109.2,3108.5,0.1759]
[1732048605770,3.21658,3108.9,3108.3,1.28686]